{"text_format":"3","workbook":"xlsx","n_sheets":3,"sheets":["Sheet1","Sheet2","Sheet3"],"not_rendered":{"images":31},"read":"whole","date_system":"1900"}

{"sheet":"Sheet1","index":0,"n_rows":44,"n_cols":10,"rows_kept":44,"merged":[[0,0,0,9],[29,0,29,9],[39,0,39,6],[40,0,40,6],[41,0,41,6],[42,0,42,3],[42,5,42,9],[43,0,43,9]]}
["四川省区域应急救援雅安基地项目交安专业分包清单"]
["序号","名称","规格型号","单位","数量","不含税控制单价（元）","不含税\n单价（元）","不含税金额（元）","示意图","备注"]
[1,"出入口灯箱","1.材质类型：定制灯箱\n2.灯箱规格：6000*600*100mm\n3.制作要求：1.5mm后镀锌板，表面氟碳喷涂，图形处雕刻镂空、背衬3mm厚亚克力板、LDE发光灯源、采用膨胀螺栓固定\n4.安装部位：车库出入口坡道横梁","套",1,{"v":7100,"d":"7100.00"},null,{"$f":"E3*G3","v":{"v":0,"d":"0.00"}},null,"施工图中无出入口灯箱、建议设置"]
[2,"入口灯箱","1.材质类型：定制灯箱\n2.灯箱规格：4000*600*100mm\n3.制作要求：1.5mm后镀锌板，表面氟碳喷涂，图形处雕刻镂空、背衬3mm厚亚克力板、LDE发光灯源、采用膨胀螺栓固定\n4.安装部位：车库入口坡道横梁","套",1,{"v":4950,"d":"4950.00"},null,{"$f":"E4*G4","v":{"v":0,"d":"0.00"}},null,"施工图中无出入口灯箱、建议设置"]
[3,"路口指示灯箱","1.材质类型：定制灯箱\n2.灯箱规格：2400*280*80mm\n3.制作要求：1.5mm后镀锌板，表面氟碳喷涂，图形处雕刻镂空、背衬3mm厚亚克力板、LDE发光灯源、采用膨胀螺栓固定\n4.安装部位：车库行车道交叉路口横梁","套",9,{"v":1480,"d":"1480.00"},null,{"v":0,"d":"0.00"},null,"施工图中无规格尺寸、材质及样式"]
[4,"电梯指示灯箱","1.材质类型：定制灯箱\n2.灯箱规格：1400*280*80mm\n3.制作要求：1.5mm后镀锌板，表面氟碳喷涂，图形处雕刻镂空、背衬3mm厚亚克力板、LDE发光灯源、采用膨胀螺栓固定\n4.安装部位：车库近电梯厅行车道交叉路口横梁","套",2,{"v":1010,"d":"1010.00"},null,{"v":0,"d":"0.00"},null,"施工图中无规格尺寸、材质"]
[5,"防撞胶条","1.材质类型：交安辅助设施\n2.材料种类：高压合成橡胶、反光晶格\n3.技术参数：直角（L型）800mm\n4.安装要求：放置、定位、采用钢钉对应孔位固定\n5.施工部位：行车道迎面立柱及墙体阳角","根",176,{"v":19,"d":"19.00"},null,{"v":0,"d":"0.00"}]
[6,"减速路拱","1.材质类型：交安辅助设施\n2.材料种类：天然耐磨橡胶\n3.技术参数：单块500*350*40mm、路拱端头250*350*40mm\n4.安装要求：采用80mm膨胀螺钉固定；安装位置距离通道边缘线两侧250-300mm\n5.施工部位：出入口坡道、行车道地面","m",20.5,{"v":71,"d":"71.00"},null,{"v":0,"d":"0.00"}]
[7,"车轮挡车器","1.材质类型：交安辅助设施\n2.材料种类：天然耐磨橡胶\n3.技术参数：530×160×110㎜ 、2个/套/车位\n4.安装要求：采用80mm膨胀螺钉固定；车位长度大于4.8米、挡车器中心点距车位尾线中心1100mm；车位长度低于4.8米、挡车器中心点距车位尾线中心900mm。\n5.施工部位：对应停车位","套",163,{"v":48,"d":"48.00"},null,{"v":0,"d":"0.00"}]
[8,"反光镜","1.材质类型：交安辅助设施\n2.材料种类：镜面PC塑料、镜背ABS工程级塑料\n3.技术参数：φ800mm镜面\n4.安装要求：膨胀螺栓固定配套扣件、部件下沿安装距地1800mm\n5.施工部位：行车转角视野盲区","面",4,{"v":182,"d":"182.00"},null,{"v":0,"d":"0.00"}]
[9,"反光道钉","1.材质类型：交安辅助设施\n2.材料种类：铸铝、工程塑料回光片\n3.技术参数：100X100mm\n4.安装要求：对应部位开孔、刮涂丁胶粘接固定于地面\n5.施工部位：车库坡道两侧边线设置、安装间距1000mm；坡道中线设置、安装间距1000mm","颗",86,{"v":15,"d":"15.00"},null,{"v":0,"d":"0.00"}]
[10,"柔性立柱","1.材质类型：交安辅助设施\n2.材料种类：塑料PU\n3.技术参数：φ80*500mm\n4.安装要求：采用M12*100mm镀锌内膨胀螺栓固定于地面\n5.施工部位：近电梯厅门厅","根",2,{"v":55,"d":"55.00"},null,{"v":0,"d":"0.00"}]
[11,"流向箭头","1.材质类型：地面标线\n2.材料种类：环氧划线标线漆\n3.技术参数：箭头长3000mm、颜色白色\n4.划线要求：清洁场地、美纹纸放样、辊涂环氧面漆2遍、面漆收旱后撕掉美纹纸\n5.施工部位：行车道交叉路口地面导向","个",40,{"v":35,"d":"35.00"},null,{"v":0,"d":"0.00"}]
[12,"道路边线","1.材质类型：地面标线\n2.材料种类：环氧划线标线漆\n3.技术参数：线宽150mm、颜色白色\n4.划线要求：清洁场地、美纹纸放样、辊涂环氧面漆2遍、面漆收旱后撕掉美纹纸\n5.施工部位：车库行车道两侧","m",761,{"v":6.5,"d":"6.50"},null,{"v":0,"d":"0.00"}]
[13,"道路中心线","1.材质类型：地面标线\n2.材料种类：环氧划线标线漆\n3.技术参数：线宽150mm、线长2000mm、线间距2000mm、颜色黄色\n4.划线要求：清洁场地、美纹纸放样、辊涂环氧面漆2遍、面漆收旱后撕掉美纹纸\n5.施工部位：车库行车道中间","m",126,{"v":8,"d":"8.00"},null,{"v":0,"d":"0.00"}]
[14,"人行横道线","1.材质类型：地面标线\n2.材料种类：环氧划线标线漆\n3.技术参数：线宽300mm、线长3000mm、线间距300mm、颜色白色\n4.划线要求：清洁场地、美纹纸放样、辊涂环氧面漆2遍、面漆收旱后撕掉美纹纸\n5.施工部位：近电梯厅行车道地面","m²",9.6,{"v":35,"d":"35.00"},null,{"v":0,"d":"0.00"}]
[15,"车位标线","1.材质类型：地面标线\n2.材料种类：环氧划线标线漆\n3.技术参数：线宽120mm、颜色白色\n4.划线要求：清洁场地、美纹纸放样、辊涂环氧面漆2遍、面漆收旱后撕掉美纹纸\n5.施工部位：车库停车区","m",1956,{"v":7,"d":"7.00"},null,{"v":0,"d":"0.00"}]
[16,"禁停网格线","1.材质类型：地面标线\n2.材料种类：环氧划线标线漆\n3.技术参数：4000x4000mm、线宽150mm、颜色白色\n4.划线要求：清洁场地、美纹纸放样、辊涂环氧面漆2遍、面漆收旱后撕掉美纹纸\n5.施工部位：行车道交叉路口","m",83.4,{"v":8,"d":"8.00"},null,{"v":0,"d":"0.00"}]
[17,"车位编号","1.材质类型：车位喷号\n2.材料种类：车位号专用耐磨油漆\n3.技术参数：单字高240mm、颜色黑色\n4.安装要求：清洁场地、排列模具、镂空图文部位均匀喷涂\n5.施工部位：对应停车位","组",163,{"v":8,"d":"8.00"},null,{"v":0,"d":"0.00"}]
[18,"车位编号色块","1.材质类型：地面标线\n2.材料种类：环氧划线标线漆\n3.技术参数：外界矩形面350*1200、颜色白色\n4.划线要求：清洁场地、美纹纸放样、辊涂环氧面漆2遍、面漆收旱后撕掉美纹纸\n5.施工部位：车库停车位","组",163,{"v":16.5,"d":"16.50"},null,{"v":0,"d":"0.00"}]
[19,"无障碍标识","1.材质类型：地面标线\n2.材料种类：环氧划线标线漆\n3.技术参数：图案高1500mm、颜色白色\n4.划线要求：清洁场地、排列模具、镂空图文部位均匀喷涂\n5.施工部位：车库无障碍车位","组",3,{"v":36,"d":"36.00"},null,{"v":0,"d":"0.00"}]
[20,"充电标识","1.材质类型：地面标线\n2.材料种类：环氧划线标线漆\n3.技术参数：图案高1500mm、颜色白色\n4.划线要求：清洁场地、排列模具、镂空图文部位均匀喷涂\n5.施工部位：车库充电车位","组",35,{"v":31,"d":"31.00"},null,{"v":0,"d":"0.00"}]
[21,"坡道折线","1.材质类型：地面标线\n2.材料种类：环氧划线标线漆\n3.技术参数：线宽150mm、线长2000mm、线间距1000mm、颜色白色\n4.划线要求：清洁场地、美纹纸放样、辊涂环氧面漆2遍、面漆收旱后撕掉美纹纸\n5.施工部位：车库出入口坡道地面","m",483.5,{"v":8,"d":"8.00"},null,{"v":0,"d":"0.00"}]
[22,"柱面涂刷","1.基础类型：防霉漆基层\n2.材料种类：有色乳胶漆\n3.技术参数：涂装高度1400mm、图形外界矩形面积计算\n4.涂刷要求：美纹纸框出相应色带区域，长毛滚筒均匀滚刷\n5.施工部位：车库立柱面","m²",591.76,{"v":19.5,"d":"19.50"},null,{"v":0,"d":"0.00"},null,"图案造型与本项目不匹配、建议深化"]
[23,"墙面涂装色带1","1.基础类型：防霉漆基层\n2.材料种类：有色乳胶漆\n3.技术参数：涂装高度1350mm\n4.涂刷要求：美纹纸框出相应色带区域，长毛滚筒均匀滚刷\n5.施工部位：车库立柱面","m²",1025.6,{"v":17.5,"d":"17.50"},null,{"v":0,"d":"0.00"}]
[24,"电梯厅墙面标识","1.基础类型：防霉漆基层\n2.材料种类：有色乳胶漆\n3.技术参数：图案370*1200mm\n4.涂刷要求：清洁工作面、排列模具、对固定网板进行刮涂印刷\n5.施工部位：车库电梯厅墙面","组",2,{"v":63,"d":"63.00"},null,{"v":0,"d":"0.00"}]
[25,"坡道涂装","1.基础类型：防霉漆基层\n2.材料种类：有色乳胶漆\n3.技术参数：涂装高度1000mm\n4.涂刷要求：美纹纸框出相应色带区域，长毛滚筒均匀滚刷\n5.施工部位：车库坡道墙面","m²",136,{"v":22,"d":"22.00"},null,{"v":0,"d":"0.00"}]
[26,"坡道墙面标识","1.基础类型：防霉漆基层\n2.材料种类：有色乳胶漆\n3.技术参数：图案190*690mm\n4.涂刷要求：清洁工作面、排列模具、对固定网板进行刮涂印刷\n5.施工部位：车库坡道墙面","组",114,{"v":19,"d":"19.00"},null,{"v":0,"d":"0.00"}]
[27,"踢脚线涂装","1.基础类型：防霉漆基层\n2.材料种类：有色乳胶漆\n3.技术参数：涂装高度150mm\n4.涂刷要求：美纹纸框出相应色带区域，长毛滚筒均匀滚刷\n5.施工部位：车库墙面、立柱面、机动坡道、墙面","m",882.4,{"v":5.5,"d":"5.50"},null,{"v":0,"d":"0.00"}]
["总平工程量清单"]
[1,"减速路拱（橡胶）","1.材质类型：交安辅助设施\n2.材料种类：天然耐磨橡胶\n3.技术参数：单块500*350*40mm、路拱端头250*350*40mm\n4.安装要求：采用80mm膨胀螺钉固定；安装位置距离通道边缘线两侧250-300mm\n5.施工部位：出入口坡道、行车道地面","m",49,{"v":68,"d":"68.00"},null,{"$f":"G31*E31","v":{"v":0,"d":"0.00"}}]
[2,"车轮挡车器（橡胶）","1.材质类型：交安辅助设施\n2.材料种类：天然耐磨橡胶\n3.技术参数：530×160×110㎜ 、2个/套/车位\n4.安装要求：采用80mm膨胀螺钉固定；车位长度大于4.8米、挡车器中心点距车位尾线中心1100mm；车位长度低于4.8米、挡车器中心点距车位尾线中心900mm。\n5.施工部位：对应停车位","套",17,{"v":49,"d":"49.00"},null,{"$f":"G32*E32","v":{"v":0,"d":"0.00"}}]
[3,"道路边线\n（热熔）","1.材质类型：地面标线\n2.材料种类：热熔型涂料(添加玻璃珠)\n3.技术参数：线宽150mm、颜色白色\n4.划线要求：清洁场地、测量打点放样、利用热熔设配将熔化涂料涂敷于路面并加入适当玻璃微珠\n5.施工部位：总平行车道两侧","m",2708,{"v":6.5,"d":"6.50"},null,{"v":0,"d":"0.00"}]
[4,"道路中心线\n（热熔)","1.材质类型：地面标线\n2.材料种类：热熔型涂料(添加玻璃珠)\n3.技术参数：线宽150mm，长2000mm,间距2000mm、颜色黄色\n4.划线要求：清洁场地、测量打点放样、利用热熔设配将熔化涂料涂敷于路面并加入适当玻璃微珠\n5.施工部位：总平行车道中间","m",322.5,{"v":7.5,"d":"7.50"},null,{"v":0,"d":"0.00"}]
[5,"停车标线\n（热熔)","1.材质类型：地面标线\n2.材料种类：热熔型涂料(添加玻璃珠)\n3.技术参数：线宽150mm、颜色白色\n4.划线要求：清洁场地、测量打点放样、利用热熔设配将熔化涂料涂敷于路面并加入适当玻璃微珠\n5.施工部位：总平机动车停车位","m",182.3,{"v":7.5,"d":"7.50"},null,{"v":0,"d":"0.00"}]
[6,"流向箭头\n（热熔)","1.材质类型：地面标线\n2.材料种类：热熔型涂料(添加玻璃珠)\n3.技术参数：箭头长3000mm、颜色白色\n4.划线要求：清洁场地、测量打点放样、利用热熔设配将熔化涂料涂敷于路面并加入适当玻璃微珠\n5.施工部位：行车道交叉路口地面导向","个",55,{"v":36,"d":"36.00"},null,{"v":0,"d":"0.00"}]
[7,"车位编号","1.材质类型：车位喷号\n2.材料种类：车位号专用耐磨油漆\n3.技术参数：单字高240mm、颜色黑色\n4.安装要求：清洁场地、排列模具、镂空图文部位均匀喷涂\n5.施工部位：对应停车位","组",17,{"v":9,"d":"9.00"},null,{"v":0,"d":"0.00"}]
[8,"总平非机动停放区\n喷涂图案\n（环氧)","1.材质类型：车位喷号\n2.材料种类：专用耐磨油漆\n3.技术参数：图案800*1700mm、颜色黄色\n4.安装要求：清洁场地、排列模具、镂空图文部位均匀喷涂\n5.施工部位：总平非机动车停车位","组",1,{"v":184,"d":"184.00"},null,{"v":0,"d":"0.00"}]
[9,"总平非机动停放区\n喷涂文字\n（环氧)","1.材质类型：车位喷号\n2.材料种类：专用耐磨油漆\n3.技术参数：文字高500mm、颜色黄色\n4.安装要求：清洁场地、排列模具、镂空图文部位均匀喷涂\n5.施工部位：总平非机动车停车位","个",8,{"v":126,"d":"126.00"},null,{"v":0,"d":"0.00"}]
["不含税合计（元）",{"$nulls":6},{"$f":"SUM(H31:H39,H3:H29)","v":{"v":0,"d":"0.00"}}]
["税率：",{"$nulls":6},"%"]
["含税合计（元）"]
["报价单位名称（加盖公章）：",{"$nulls":4},"联系人及联系电话："]
["注：报价采用固定综合单价。分包单位根据清单及图纸自主综合考虑报价，报价保留小数点后两位。报价包含但不限于主材费用、辅材费用、耗材费用、损耗费用、运送费、二次搬运费、二次深化设计费用、卸车、人工费用、资料费、管理费、竣工验收费、材料及分包工程验收试验检测费用、安全文明施工费、措施项目费、赶工费用、成品保护费、分包单位人员薪资和意外伤害保险费、工人食宿费用、供应商合理利润、完工后清洁工作相关费用、不可预见费用等分包单位一切直接和间接费用。至工程完工期间出现的人工、材料等费用的上涨，属于分包单位承担的风险范畴，价款均不予调整。具体金额以实际结算金额为准。"]

{"sheet":"Sheet2","index":1,"n_rows":0,"n_cols":0,"rows_kept":0}

{"sheet":"Sheet3","index":2,"n_rows":0,"n_cols":0,"rows_kept":0}